lending/lending_fUSD_20240110
["ID","MTS","AMOUNT","RATE_DAILY","PERIOD"]
[311025092,1704873059340,-500.0,0.0003041,2]
[311025093,1704873059350,-875.29,0.0003041,2]
[311025094,1704873059361,-500.0,0.0003041,2]
[311025095,1704873059373,-723.68,0.0003041,2]
[311025096,1704873059381,-1098.09,0.0003041,2]
[311025097,1704873059390,-500.0,0.0003041,2]
[311025098,1704873059399,-786.08,0.0003041,2]
[311025099,1704873059409,-1517.62,0.0003041,2]
[311025100,1704873059418,-572.06,0.0003041,2]
[311025101,1704873059427,-571.35,0.0003041,2]
[311025102,1704873059436,-500.0,0.0003041,2]
[311025103,1704873059446,-500.0,0.0003041,2]
[311025104,1704873059458,-500.0,0.0003041,2]
[311025105,1704873059468,-500.0,0.0003041,2]
[311025106,1704873059477,-500.0,0.0003041,2]
[311025107,1704873059486,-500.0,0.0003041,2]
[311025108,1704873059495,-500.0,0.0003041,2]
[311025109,1704873059505,-500.0,0.0003041,2]
[311025110,1704873059514,-866.33,0.0003041,2]
[311025111,1704873059524,-1000.0,0.0003041,7]
[311025112,1704873059534,-1313.47,0.0003041,2]
[311025113,1704873059544,-836.6,0.0003041,2]
[311025114,1704873059553,-500.0,0.0003041,2]
[311025115,1704873059564,-1152.55,0.0003041,2]
[311025116,1704873059573,-528.61872323,0.0003041,2]
[311025117,1704873059582,-500.0,0.0003041,2]
[311025118,1704873059592,-500.0,0.0003041,2]
[311025119,1704873059601,-1556.25,0.0003041,2]
[311025120,1704873059611,-1256.03,0.0003041,2]
[311025121,1704873059621,-500.0,0.0003041,2]
[311025122,1704873059630,-1140.72,0.0003041,2]
[311025123,1704873059640,-500.0,0.0003041,2]
[311025124,1704873059650,-1324.64,0.0003041,2]
[311025125,1704873059659,-266.47633735,0.0003041,2]
[311025126,1704873059668,-500.0,0.0003041,2]
[311025127,1704873059677,-1218.71,0.0003041,2]
[311025128,1704873059686,-853.1,0.0003041,2]
[311025129,1704873059695,-1269.98,0.0003041,2]
[311025130,1704873059706,-728.65,0.0003041,2]
[311025131,1704873059715,-1298.05,0.0003041,2]
[311025132,1704873059724,-1713.75,0.0003041,2]
[311025133,1704873059733,-500.0,0.0003041,2]
[311025134,1704873059743,-500.0,0.0003041,2]
[311025135,1704873059752,-500.0,0.0003041,2]
[311025136,1704873059761,-831.24,0.0003041,2]
[311025137,1704873059770,-569.63,0.0003041,2]
[311025138,1704873059780,-500.0,0.0003041,2]
[311025139,1704873059789,-2031.17,0.0003041,2]
[311025140,1704873059800,-500.0,0.0003041,2]
[311025141,1704873059810,-524.24,0.0003041,2]
[311025142,1704873059820,-1601.7,0.0003041,2]
[311025143,1704873059829,-500.0,0.0003041,2]
[311025144,1704873059839,-500.0,0.0003041,2]
[311025145,1704873059849,-1017.74,0.0003041,2]
[311025146,1704873059859,-500.0,0.0003041,2]
[311025147,1704873059868,-500.0,0.0003041,2]
[311025148,1704873059877,-791.41,0.0003041,2]
[311025149,1704873059886,-1118.71,0.0003041,2]
[311025150,1704873059895,-500.0,0.0003041,2]
[311025151,1704873059904,-626.68,0.0003041,2]
[311025152,1704873059913,-1049.71,0.0003041,2]
[311025153,1704873059923,-500.0,0.0003041,2]
[311025154,1704873059932,-500.0,0.0003041,2]
[311025155,1704873059941,-500.0,0.0003041,2]
[311025156,1704873059950,-500.0,0.0003041,2]
[311025157,1704873059959,-500.0,0.0003041,2]
[311025158,1704873059968,-733.68,0.0003041,2]
[311025159,1704873059978,-500.0,0.0003041,2]
[311025160,1704873059987,-500.0,0.0003041,2]
[311025161,1704873059996,-500.0,0.0003041,7]
[311025162,1704873060005,-500.0,0.0003041,2]
[311025163,1704873060014,-500.0,0.0003041,2]
[311025164,1704873060024,-561.28,0.0003041,2]
[311025165,1704873060032,-500.0,0.0003041,2]
[311025166,1704873060042,-902.13,0.0003041,2]
[311025167,1704873060051,-500.0,0.0003041,2]
[311025168,1704873060061,-1053.88,0.0003041,2]
[311025169,1704873060070,-1088.38,0.0003041,2]
[311025170,1704873060079,-835.24,0.0003041,2]
[311025171,1704873060088,-500.0,0.0003041,2]
[311025172,1704873060098,-721.46,0.0003041,2]
[311025173,1704873060107,-500.0,0.0003041,2]
[311025174,1704873060116,-500.0,0.0003041,2]
[311025175,1704873060125,-500.0,0.0003041,2]
[311025176,1704873060134,-500.0,0.0003041,2]
[311025177,1704873060143,-919.69,0.0003041,2]
[311025178,1704873060152,-1391.47,0.0003041,2]
[311025179,1704873060162,-649.26,0.0003041,2]
[311025180,1704873060171,-500.0,0.0003041,2]
[311025181,1704873060181,-700.3,0.0003041,2]
[311025182,1704873060190,-533.48937456,0.0003041,2]
[311025183,1704873060199,-500.0,0.0003041,2]
[311025184,1704873060208,-2227.04,0.0003041,2]
[311025185,1704873060218,-596.15,0.0003041,2]
[311025186,1704873060227,-1069.65,0.0003041,2]
[311025187,1704873060236,-1400.2,0.0003041,2]
[311025188,1704873060245,-500.0,0.0003041,2]
[311025189,1704873060255,-641.27,0.0003041,2]
[311025190,1704873060265,-1327.8,0.0003041,2]
[311025191,1704873060274,-513.46,0.0003041,2]
[311025192,1704873060283,-500.0,0.0003041,2]
[311025193,1704873060293,-501.45794188,0.0003041,2]
[311025194,1704873060302,-500.0,0.0003041,2]
[311025195,1704873060311,-695.32,0.0003041,2]
[311025196,1704873060320,-1487.28,0.0003041,2]
[311025197,1704873060330,-1507.14,0.0003041,2]
[311025198,1704873060339,-930.79,0.0003041,2]
[311025199,1704873060349,-500.0,0.0003041,2]
[311025200,1704873060358,-500.0,0.0003041,2]
[311025201,1704873060368,-628.25,0.0003041,2]
[311025202,1704873060377,-1292.48,0.0003041,2]
[311025203,1704873060386,-1760.51,0.0003041,2]
[311025204,1704873060395,-500.0,0.0003041,2]
[311025205,1704873060404,-500.0,0.0003041,2]
[311025206,1704873060413,-500.0,0.0003041,2]
[311025207,1704873060423,-500.0,0.0003041,2]
[311025208,1704873060440,-500.0,0.0003041,2]
[311025209,1704873060459,-500.0,0.0003041,2]
[311025210,1704873060474,-1101.16,0.0003041,2]
[311025211,1704873060493,-500.0,0.0003041,2]
[311025212,1704873060511,-500.0,0.0003041,2]
[311025213,1704873060526,-500.0,0.0003041,2]
[311025214,1704873060542,-500.0,0.0003041,2]
[311025215,1704873060559,-500.0,0.0003041,2]
[311025216,1704873060574,-1015.54,0.0003041,2]
[311025217,1704873060591,-500.0,0.0003041,2]
[311025218,1704873060608,-1243.94,0.0003041,2]
[311025219,1704873060624,-1980.15,0.0003041,2]
[311025220,1704873060641,-2469.6,0.0003041,2]
[311025221,1704873060661,-1197.88,0.0003041,2]
[311025222,1704873060672,-747.7,0.0003041,2]
[311025223,1704873060687,-503.16,0.0003041,2]
[311025224,1704873060703,-1264.06,0.0003041,2]
[311025225,1704873060718,-1211.0,0.0003041,2]
[311025226,1704873060732,-627.66613692,0.0003041,2]
[311025227,1704873060746,-500.0,0.0003041,2]
[311025228,1704873060761,-593.51,0.0003041,2]
[311025229,1704873060775,-500.0,0.0003041,2]
[311025230,1704873060790,-500.0,0.0003041,2]
[311025231,1704873060805,-1414.15,0.0003041,2]
[311025232,1704873060819,-813.85,0.0003041,2]
[311025233,1704873060832,-500.0,0.0003041,2]
[311025234,1704873060847,-1420.4,0.0003041,2]
[311025235,1704873060863,-500.0,0.0003041,2]
[311025236,1704873060877,-500.0,0.0003041,2]
[311025237,1704873060891,-1558.39,0.0003041,2]
[311025238,1704873060906,-957.63,0.0003041,2]
[311025239,1704873060920,-500.0,0.0003041,2]
[311025240,1704873060935,-500.0,0.0003041,2]
[311025241,1704873060949,-824.71,0.0003041,2]
[311025242,1704873060964,-532.28,0.0003041,2]
[311025243,1704873060979,-1129.98,0.0003041,2]
[311025244,1704873060993,-500.0,0.0003041,2]
[311025245,1704873061008,-736.45,0.0003041,2]
[311025246,1704873061023,-981.71,0.0003041,2]
[311025247,1704873061038,-876.95,0.0003041,2]
[311025248,1704873061053,-1067.63,0.0003041,2]
[311025249,1704873061067,-500.0,0.0003041,2]
[311025250,1704873061082,-500.0,0.0003041,2]
[311025251,1704873061096,-500.0,0.0003041,2]
[311025252,1704873061110,-500.0,0.0003041,2]
[311025253,1704873061125,-630.17,0.0003041,2]
[311025254,1704873061148,-500.0,0.0003041,2]
[311025255,1704873061162,-1523.04,0.0003041,2]
[311025256,1704873061176,-1018.05,0.0003041,2]
[311025257,1704873061190,-817.46,0.0003041,2]
[311025258,1704873061205,-1111.27,0.0003041,2]
[311025259,1704873061221,-1324.82,0.0003041,2]
[311025260,1704873061236,-607.77,0.0003041,2]
[311025261,1704873061251,-667.86,0.0003041,2]
[311025262,1704873061264,-500.0,0.0003041,2]
[311025263,1704873061279,-515.0,0.0003041,2]
[311025264,1704873061293,-500.0,0.0003041,2]
[311025265,1704873061307,-967.53,0.0003041,2]
[311025266,1704873061321,-500.0,0.0003041,2]
[311025267,1704873061335,-500.0,0.0003041,2]
[311025268,1704873061350,-500.0,0.0003041,2]
[311025269,1704873061367,-500.0,0.0003041,2]
[311025270,1704873061381,-1566.35,0.0003041,2]
[311025271,1704873061396,-443.49288994,0.0003041,2]
[311025272,1704873061410,-500.0,0.0003041,2]
[311025273,1704873061424,-660.62,0.0003041,2]
[311025274,1704873061438,-1709.95,0.0003041,2]
[311025275,1704873061452,-500.0,0.0003041,2]
[311025276,1704873061466,-500.0,0.0003041,2]
[311025277,1704873061481,-1326.24,0.0003041,2]
[311025278,1704873061495,-1644.17,0.0003041,2]
[311025279,1704873061510,-500.0,0.0003041,2]
[311025280,1704873061523,-500.0,0.0003041,2]
[311025281,1704873061538,-596.96963652,0.0003041,2]
[311025282,1704873061552,-500.0,0.0003041,2]
[311025283,1704873061566,-563.55,0.0003041,2]
[311025284,1704873061581,-970.8,0.0003041,2]
[311025285,1704873061596,-564.70194857,0.0003041,2]
[311025286,1704873061610,-978.28,0.0003041,2]
[311025287,1704873061625,-500.0,0.0003041,2]
[311025288,1704873061639,-910.11,0.0003041,2]
[311025289,1704873061654,-500.0,0.0003041,2]
[311025290,1704873061668,-851.03,0.0003041,2]
[311025291,1704873061682,-500.0,0.0003041,2]
[311025292,1704873061697,-597.67,0.0003041,2]
[311025293,1704873061712,-500.0,0.0003041,2]
[311025294,1704873061727,-1073.72,0.0003041,2]
[311025295,1704873061742,-500.0,0.0003041,2]
[311025296,1704873061756,-500.0,0.0003041,2]
[311025297,1704873061770,-500.0,0.0003041,2]
[311025298,1704873061784,-500.0,0.0003041,2]
[311025299,1704873061798,-790.85,0.0003041,2]
[311025300,1704873061812,-1303.11,0.0003041,2]
[311025301,1704873061826,-1749.73,0.0003041,2]
[311025302,1704873061840,-500.0,0.0003041,2]
[311025303,1704873061854,-500.0,0.0003041,2]
[311025304,1704873061870,-1844.47,0.0003041,2]
[311025305,1704873061884,-648.37,0.0003041,2]
[311025306,1704873061900,-1066.48,0.0003041,2]
[311025307,1704873061913,-500.0,0.0003041,2]
[311025308,1704873061927,-500.0,0.0003041,2]
[311025309,1704873061942,-500.0,0.0003041,2]
[311025310,1704873061956,-908.11,0.0003041,2]
[311025311,1704873061970,-914.77,0.0003041,2]
[311025312,1704873061984,-500.0,0.0003041,2]
[311025313,1704873061998,-573.72194007,0.0003041,2]
[311025314,1704873062012,-500.0,0.0003041,2]
[311025315,1704873062026,-500.0,0.0003041,2]
[311025316,1704873062041,-500.0,0.0003041,2]
[311025317,1704873062055,-926.31,0.0003041,2]
[311025318,1704873062070,-2029.1,0.0003041,2]
[311025319,1704873062084,-644.04,0.0003041,2]
[311025320,1704873062098,-500.0,0.0003041,2]
[311025321,1704873062114,-500.0,0.0003041,2]
[311025322,1704873062129,-500.0,0.0003041,2]
[311025323,1704873062143,-500.0,0.0003041,2]
[311025324,1704873062158,-500.0,0.0003041,2]
[311025325,1704873062172,-1198.29,0.0003041,2]
[311025326,1704873062186,-1624.99,0.0003041,2]
[311025327,1704873062200,-1948.61,0.0003041,2]
[311025328,1704873062215,-994.71,0.0003041,2]
[311025329,1704873062228,-1211.39,0.0003041,2]
[311025330,1704873062242,-500.0,0.0003041,2]
[311025331,1704873062256,-1786.72,0.0003041,2]
[311025332,1704873062271,-500.0,0.0003041,2]
[311025333,1704873062285,-1120.55,0.0003041,2]
[311025334,1704873062301,-500.0,0.0003041,2]
[311025335,1704873062315,-500.0,0.0003041,2]
[311025336,1704873062329,-961.57,0.0003041,2]
[311025337,1704873062344,-500.0,0.0003041,2]
[311025338,1704873062361,-500.0,0.0003041,2]
[311025339,1704873062375,-530.95,0.0003041,2]
[311025340,1704873062389,-932.64,0.0003041,2]
[311025341,1704873062404,-604.28,0.0003041,2]
[311025342,1704873062418,-871.32,0.0003041,2]
[311025343,1704873062432,-834.43,0.0003041,2]
[311025344,1704873062446,-588.04,0.0003041,2]
[311025345,1704873062460,-582.56,0.0003041,2]
[311025346,1704873062474,-500.0,0.0003041,2]
[311025347,1704873062488,-926.79,0.0003041,2]
[311025348,1704873062504,-910.03,0.0003041,2]
[311025349,1704873062518,-1433.8,0.0003041,2]
[311025350,1704873062533,-500.0,0.0003041,2]
[311025351,1704873062547,-522.78,0.0003041,2]
[311025352,1704873062562,-1734.45,0.0003041,2]
[311025353,1704873062577,-1753.3,0.0003041,2]
[311025354,1704873062591,-500.0,0.0003041,2]
[311025355,1704873062606,-2732.98,0.0003041,2]
[311025356,1704873062621,-500.0,0.0003041,2]
[311025357,1704873062634,-1244.1,0.0003041,2]
[311025358,1704873062648,-500.0,0.0003041,2]
[311025359,1704873062662,-500.0,0.0003041,2]
[311025360,1704873062676,-1350.89,0.0003041,2]
[311025361,1704873062691,-781.62,0.0003041,2]
[311025362,1704873062704,-500.0,0.0003041,2]
[311025363,1704873062715,-500.0,0.0003041,2]
[311025364,1704873062724,-500.0,0.0003041,2]
[311025365,1704873062734,-500.0,0.0003041,2]
[311025366,1704873062744,-981.17,0.0003041,2]
[311025367,1704873062754,-500.0,0.0003041,2]
[311025368,1704873062766,-1911.43,0.0003041,2]
[311025369,1704873062777,-500.0,0.0003041,2]
[311025370,1704873062787,-500.0,0.0003041,2]
[311025371,1704873062798,-500.0,0.0003041,2]
[311025372,1704873062808,-986.22,0.0003041,2]
[311025373,1704873062817,-1008.93,0.0003041,2]
[311025374,1704873062828,-500.0,0.0003041,2]
[311025375,1704873062838,-548.72,0.0003041,2]
[311025376,1704873062848,-2028.87,0.0003041,2]
[311025377,1704873062860,-1869.36,0.0003041,2]
[311025378,1704873062870,-500.0,0.0003041,2]
[311025379,1704873062881,-500.0,0.0003041,2]
[311025380,1704873062891,-1000.0,0.0003041,2]
[311025381,1704873062901,-941.34,0.0003041,2]
[311025382,1704873062911,-500.0,0.0003041,2]
[311025383,1704873062920,-500.0,0.0003041,2]
[311025384,1704873063434,-544.41,0.0003041,2]
[311025385,1704873063455,-399.52073808,0.0003041,2]
[311025386,1704873063494,-604.74,0.0003041,2]
[311025387,1704873063522,-712.53,0.0003041,2]
[311025388,1704873063531,-1854.53,0.0003041,2]
[311025389,1704873063540,-1296.4,0.0003041,2]
[311025390,1704873063550,-1825.36,0.0003041,2]
[311025391,1704873063560,-500.0,0.0003041,2]
[311025392,1704873063569,-500.0,0.0003041,2]
[311025393,1704873063579,-1827.61,0.0003041,2]
[311025394,1704873063589,-500.0,0.0003041,2]
[311025395,1704873063598,-234.74768717,0.0003041,2]
[311025396,1704873063609,-500.0,0.0003041,2]
[311025397,1704873063620,-500.0,0.0003041,2]
[311025398,1704873063630,-500.0,0.0003041,2]
[311025399,1704873063640,-6317.07,0.0003041,2]
[311025400,1704873063649,-500.0,0.0003041,2]
[311025401,1704873063658,-887.83,0.0003041,2]
[311025402,1704873063668,-3482.43,0.0003041,2]
[311025403,1704873063679,-748.33,0.0003041,2]
[311025404,1704873063689,-500.0,0.0003041,2]
[311025405,1704873063700,-2243.87,0.0003041,2]
[311025406,1704873063709,-500.0,0.0003041,2]
[311025407,1704873063719,-500.0,0.0003041,2]
[311025408,1704873063728,-917.72,0.0003041,2]
[311025409,1704873063739,-978.66,0.0003041,2]
[311025410,1704873063748,-3084.44,0.0003041,2]
[311025411,1704873063758,-516.19,0.0003041,2]
[311025412,1704873063767,-697.66,0.0003041,2]
[311025413,1704873063776,-500.0,0.0003041,2]
[311025414,1704873063786,-824.75,0.0003041,2]
[311025415,1704873063795,-1741.49,0.0003041,2]
[311025416,1704873063805,-888.71,0.0003041,2]
[311025417,1704873063815,-500.0,0.0003041,2]
[311025418,1704873063824,-500.0,0.0003041,2]
[311025419,1704873063834,-500.0,0.0003041,2]
[311025420,1704873063843,-7672.01,0.0003041,2]
[311025421,1704873063853,-521.95899213,0.0003041,2]
[311025422,1704873063864,-1355.0,0.0003041,2]
[311025423,1704873063874,-500.0,0.0003041,2]
[311025424,1704873063884,-2112.05,0.0003041,2]
[311025425,1704873063898,-1695.18,0.0003041,2]
[311025426,1704873063907,-3531.47,0.0003041,2]
[311025427,1704873063917,-500.0,0.0003041,2]
[311025428,1704873063927,-553.51,0.0003041,2]
[311025429,1704873063937,-500.0,0.0003041,2]
[311025430,1704873063947,-500.0,0.0003041,2]
[311025431,1704873063956,-500.0,0.0003041,2]
[311025432,1704873063966,-500.0,0.0003041,2]
[311025433,1704873063975,-1336.94,0.0003041,2]
[311025434,1704873063985,-500.0,0.0003041,2]
[311025435,1704873063995,-500.0,0.0003041,2]
[311025436,1704873064005,-3549.65,0.0003041,2]
[311025437,1704873064014,-500.0,0.0003041,2]
[311025438,1704873064023,-1247.22,0.0003041,2]
[311025439,1704873064033,-500.0,0.0003041,2]
[311025440,1704873064043,-500.0,0.0003041,2]
[311025441,1704873064052,-1000.0,0.0003041,2]
[311025442,1704873064062,-1117.25,0.0003041,2]
[311025443,1704873064072,-500.0,0.0003041,2]
[311025444,1704873064082,-11859.61,0.0003041,2]
[311025445,1704873064092,-500.0,0.0003041,2]
[311025446,1704873064101,-500.0,0.0003041,2]
[311025447,1704873064114,-500.0,0.0003041,2]
[311025448,1704873064125,-500.0,0.0003041,2]
[311025449,1704873064135,-1464.03,0.0003041,2]
[311025450,1704873064145,-552.85,0.0003041,2]
[311025451,1704873064155,-1934.59,0.0003041,2]
[311025452,1704873064165,-500.0,0.0003041,2]
[311025453,1704873064175,-500.0,0.0003041,2]
[311025454,1704873064184,-688.03,0.0003041,2]
[311025455,1704873064195,-500.0,0.0003041,2]
[311025456,1704873064205,-500.0,0.0003041,2]
[311025457,1704873064215,-500.0,0.0003041,2]
[311025458,1704873064225,-502.28975348,0.0003041,2]
[311025459,1704873064235,-4116.79,0.0003041,2]
[311025460,1704873064245,-1444.73,0.0003041,2]
[311025461,1704873064254,-7522.08,0.0003041,2]
[311025462,1704873064265,-500.0,0.0003041,2]
[311025463,1704873064274,-705.27,0.0003041,2]
[311025464,1704873064283,-500.0,0.0003041,2]
[311025465,1704873064292,-4040.01,0.0003041,2]
[311025466,1704873064302,-500.0,0.0003041,2]
[311025467,1704873064312,-500.0,0.0003041,2]
[311025468,1704873064323,-1669.89,0.0003041,2]
[311025469,1704873064334,-1591.18,0.0003041,2]
[311025470,1704873064343,-500.0,0.0003041,2]
[311025471,1704873064354,-500.0,0.0003041,2]
[311025472,1704873064365,-1676.02,0.0003041,2]
[311025473,1704873064374,-536.22357156,0.0003041,2]
[311025474,1704873064384,-697.48,0.0003041,2]
[311025475,1704873064393,-1669.03,0.0003041,2]
[311025476,1704873064402,-500.0,0.0003041,2]
[311025477,1704873064413,-6489.88,0.0003041,2]
[311025478,1704873064422,-1608.48,0.0003041,2]
[311025479,1704873064432,-1115.15,0.0003041,2]
[311025480,1704873064441,-12110.32,0.0003041,2]
[311025481,1704873064450,-1416.77,0.0003041,2]
[311025482,1704873064459,-500.0,0.0003041,2]
[311025483,1704873064469,-686.4,0.0003041,2]
[311025484,1704873064478,-1645.92,0.0003041,2]
[311025485,1704873064488,-587.19,0.0003041,2]
[311025486,1704873064498,-500.0,0.0003041,2]
[311025487,1704873064507,-592.43,0.0003041,2]
[311025488,1704873064517,-857.7,0.0003041,2]
[311025489,1704873064527,-500.0,0.0003041,2]
[311025490,1704873064536,-507.74,0.0003041,2]
[311025491,1704873064546,-2076.25,0.0003041,2]
[311025492,1704873064556,-1562.89,0.0003041,2]
[311025493,1704873064565,-4754.79,0.0003041,2]
[311025494,1704873064575,-558.28,0.0003041,2]
[311025495,1704873064585,-1097.09,0.0003041,2]
[311025496,1704873064594,-500.0,0.0003041,2]
[311025497,1704873064610,-3518.69,0.0003041,2]
[311025498,1704873064620,-5059.52,0.0003041,2]
[311025499,1704873064630,-500.0,0.0003041,2]
[311025500,1704873064639,-500.0,0.0003041,2]
[311025501,1704873064649,-500.0,0.0003041,2]
[311025502,1704873064659,-5021.07,0.0003041,2]
[311025503,1704873064669,-693.49,0.0003041,2]
[311025504,1704873064679,-500.0,0.0003041,2]
[311025505,1704873064689,-959.33,0.0003041,2]
[311025506,1704873064698,-500.0,0.0003041,2]
[311025507,1704873064708,-1639.76,0.0003041,2]
[311025508,1704873064718,-500.0,0.0003041,2]
[311025509,1704873064727,-500.0,0.0003041,2]
[311025510,1704873064737,-1194.54,0.0003041,2]
[311025511,1704873064747,-1021.7,0.0003041,2]
[311025512,1704873064757,-577.94,0.0003041,2]
[311025513,1704873064766,-726.25,0.0003041,2]
[311025514,1704873064776,-19301.44,0.0003041,2]
[311025515,1704873064785,-500.0,0.0003041,2]
[311025516,1704873064794,-1439.23,0.0003041,2]
[311025517,1704873064804,-545.25,0.0003041,2]
[311025518,1704873064814,-1014.36,0.0003041,2]
[311025519,1704873064823,-3520.56,0.0003041,2]
[311025520,1704873064833,-183.43620608,0.0003041,2]
[311025521,1704873064842,-1157.33,0.0003041,2]
[311025522,1704873064851,-834.82,0.0003041,2]
[311025523,1704873064862,-12167.17,0.0003041,2]
[311025524,1704873064872,-1713.17,0.0003041,2]
[311025525,1704873064881,-500.0,0.0003041,2]
[311025526,1704873064891,-1196.86,0.0003041,2]
[311025527,1704873064901,-701.59,0.0003041,2]
[311025528,1704873064910,-500.0,0.0003041,2]
[311025529,1704873064920,-500.0,0.0003041,2]
[311025530,1704873064930,-1167.42,0.0003041,2]
[311025531,1704873064939,-500.0,0.0003041,2]
[311025532,1704873064949,-500.0,0.0003041,2]
[311025533,1704873064959,-15905.86,0.0003041,2]
[311025534,1704873064968,-989.91,0.0003041,2]
[311025535,1704873064978,-1320.17,0.0003041,2]
[311025536,1704873064988,-639.2369697,0.0003041,2]
[311025537,1704873064997,-851.82,0.0003041,2]
[311025538,1704873065007,-500.0,0.0003041,2]
[311025539,1704873065016,-11397.73,0.0003041,2]
[311025540,1704873065026,-2746.96,0.0003041,2]
[311025541,1704873065036,-907.18,0.0003041,2]
[311025542,1704873065045,-500.0,0.0003041,2]
[311025543,1704873065056,-964.75,0.0003041,2]
[311025544,1704873065068,-500.0,0.0003041,2]
[311025545,1704873065081,-500.0,0.0003041,2]
[311025546,1704873065093,-500.0,0.0003041,2]
[311025547,1704873065104,-3077.87,0.0003041,2]
[311025548,1704873065117,-1302.46,0.0003041,2]
[311025549,1704873065127,-512.99,0.0003041,2]
[311025550,1704873065137,-640.77,0.0003041,2]
[311025551,1704873065150,-500.0,0.0003041,2]
[311025552,1704873065160,-500.0,0.0003041,2]
[311025553,1704873065170,-1183.52,0.0003041,2]
[311025554,1704873065181,-500.0,0.0003041,2]
[311025555,1704873065192,-853.4,0.0003041,2]
[311025556,1704873065202,-500.0,0.0003041,2]
[311025557,1704873065212,-7691.62,0.0003041,2]
[311025558,1704873065223,-554.4,0.0003041,2]
[311025559,1704873065233,-500.0,0.0003041,2]
[311025560,1704873065244,-1674.37,0.0003041,2]
[311025561,1704873065254,-525.35329635,0.0003041,2]
[311025562,1704873065263,-167.36462124,0.0003041,2]
[311025563,1704873065273,-280.46,0.0003041,2]
[311025564,1704873065284,-500.0,0.0003041,2]
[311025565,1704873065294,-500.0,0.0003041,2]
[311025566,1704873065303,-995.46,0.0003041,2]
[311025567,1704873065313,-1852.71,0.0003041,2]
[311025568,1704873065322,-656.17,0.0003041,2]
[311025569,1704873065332,-4943.72,0.0003041,2]
[311025570,1704873065342,-756.81,0.0003041,2]
[311025571,1704873065351,-51233.67,0.0003041,2]
[311025572,1704873065363,-2408.56,0.0003041,2]
[311025573,1704873065372,-500.0,0.0003041,2]
[311025574,1704873065383,-3491.08,0.0003041,2]
[311025575,1704873065393,-646.69,0.0003041,2]
[311025576,1704873065403,-934.12,0.0003041,2]
[311025577,1704873065414,-500.0,0.0003041,2]
[311025578,1704873065423,-624.37,0.0003041,2]
[311025579,1704873065432,-500.0,0.0003041,2]
[311025580,1704873065443,-505.3307299,0.0003041,2]
[311025581,1704873065454,-851.21,0.0003041,2]
[311025582,1704873065465,-500.0,0.0003041,2]
[311025583,1704873065475,-500.0,0.0003041,2]
[311025584,1704873065485,-500.0,0.0003041,2]
[311025585,1704873065496,-18798.9,0.0003041,2]
[311025586,1704873065506,-825.72,0.0003041,2]
[311025587,1704873065516,-2180.79,0.0003041,2]
[311025588,1704873065525,-500.0,0.0003041,2]
[311025589,1704873065535,-12486.22,0.0003041,2]
[311025590,1704873065544,-500.0,0.0003041,2]
[311025591,1704873065554,-500.0,0.0003041,2]